fUSD/lending_fUSD_20250616
["ID","MTS","AMOUNT","RATE_DAILY","PERIOD"]
[366112092,1750069841652,-490.0,0.00016438,2]
[366112094,1750069841661,-499.95443992,0.00016438,2]
[366112096,1750069841670,-490.0,0.00016438,2]
[366112099,1750069841680,-535.84,0.00016438,2]
[366112100,1750069841689,-490.0,0.00016438,2]
[366112102,1750069841698,-490.0,0.00016438,2]
[366112104,1750069841708,-490.0,0.00016438,2]
[366112106,1750069841720,-490.0,0.00016438,2]
[366112108,1750069841730,-490.0,0.00016438,2]
[366112111,1750069841740,-531.72,0.00016438,2]
[366112113,1750069841750,-490.0,0.00016438,2]
[366112115,1750069841759,-490.0,0.00016438,2]
[366112117,1750069841769,-451.2024598,0.00016438,2]
[366112119,1750069841779,-490.0,0.00016438,2]
[366112121,1750069841788,-490.0,0.00016438,2]
[366112123,1750069841798,-490.0,0.00016438,2]
[366112125,1750069841807,-490.0,0.00016438,2]
[366112127,1750069841816,-490.0,0.00016438,2]
[366112129,1750069841826,-490.0,0.00016438,2]
[366112131,1750069841836,-490.0,0.00016438,2]
[366112133,1750069841845,-490.0,0.00016438,2]
[366112134,1750069841855,-854.42,0.00016438,2]
[366112137,1750069841865,-490.0,0.00016438,2]
[366112139,1750069841875,-490.0,0.00016438,2]
[366112141,1750069841885,-490.0,0.00016438,2]
[366112143,1750069841894,-490.0,0.00016438,2]
[366112145,1750069841904,-490.0,0.00016438,2]
[366112147,1750069841913,-490.0,0.00016438,2]
[366112149,1750069841922,-490.0,0.00016438,2]
[366112151,1750069841934,-806.76,0.00016438,2]
[366112153,1750069841943,-490.0,0.00016438,2]
[366112155,1750069841952,-151.0,0.00016438,2]
[366112157,1750069841961,-490.0,0.00016438,2]
[366112159,1750069841970,-151.0,0.00016438,2]
[366112161,1750069841980,-490.0,0.00016438,2]
[366112163,1750069841989,-490.0,0.00016438,2]
[366112165,1750069841998,-490.0,0.00016438,2]
[366112167,1750069842007,-490.0,0.00016438,2]
[366112169,1750069842017,-490.0,0.00016438,2]
[366112171,1750069842026,-490.0,0.00016438,2]
[366112173,1750069842039,-490.0,0.00016438,2]
[366112175,1750069842048,-409.16927831,0.00016438,2]
[366112177,1750069842058,-477.26711621,0.00016438,2]
[366112180,1750069842080,-490.0,0.00016438,2]
[366112182,1750069842090,-490.0,0.00016438,2]
[366112184,1750069842099,-611.96,0.00016438,2]
[366112186,1750069842110,-490.0,0.00016438,2]
[366112188,1750069842119,-490.0,0.00016438,2]
[366112190,1750069842129,-500.32,0.00016438,2]
[366112192,1750069842138,-506.86804404,0.00016438,2]
[366112194,1750069842148,-490.0,0.00016438,2]
[366112196,1750069842158,-504.113114,0.00016438,2]
[366112198,1750069842169,-405.80420264,0.00016438,2]
[366112200,1750069842179,-504.113114,0.00016438,2]
[366112202,1750069842191,-490.0,0.00016438,2]
[366112204,1750069842201,-490.0,0.00016438,2]
[366112206,1750069842211,-151.0,0.00016438,2]
[366112208,1750069842221,-596.18,0.00016438,2]
[366112210,1750069842231,-490.0,0.00016438,2]
[366112212,1750069842240,-500.35,0.00016438,2]
[366112214,1750069842250,-490.0,0.00016438,2]
[366112217,1750069842261,-490.0,0.00016438,2]
[366112219,1750069842270,-649.01,0.00016438,2]
[366112221,1750069842280,-490.0,0.00016438,2]
[366112223,1750069842290,-490.0,0.00016438,2]
[366112224,1750069842299,-490.0,0.00016438,2]
[366112225,1750069842309,-490.0,0.00016438,2]
[366112226,1750069842318,-591.97733761,0.00016438,2]
[366112227,1750069842328,-438.628682,0.00016438,2]
[366112228,1750069842338,-151.0,0.00016438,2]
[366112229,1750069842348,-490.0,0.00016438,2]
[366112230,1750069842358,-438.628682,0.00016438,2]
[366112231,1750069842367,-490.0,0.00016438,2]
[366112232,1750069842377,-490.0,0.00016438,2]
[366112233,1750069842387,-490.0,0.00016438,2]
[366112235,1750069842396,-490.0,0.00016438,2]
[366112236,1750069842406,-753.23,0.00016438,2]
[366112238,1750069842416,-151.0,0.00016438,2]
[366112240,1750069842426,-356.43569014,0.00016438,2]
[366112243,1750069842438,-587.82,0.00016438,2]
[366112245,1750069842447,-920.13,0.00016438,2]
[366112247,1750069842456,-205.806729,0.00016438,2]
[366112249,1750069842466,-490.0,0.00016438,2]
[366112251,1750069842475,-490.0,0.00016438,2]
[366112253,1750069842485,-490.0,0.00016438,2]
[366112255,1750069842495,-580.85,0.00016438,2]
[366112257,1750069842504,-490.0,0.00016438,2]
[366112259,1750069842514,-678.43,0.00016438,2]
[366112261,1750069842523,-516.08286717,0.00016438,2]
[366112263,1750069842533,-490.0,0.00016438,2]
[366112265,1750069842542,-841.37,0.00016438,2]
[366112267,1750069842552,-490.0,0.00016438,2]
[366112269,1750069842561,-151.0,0.00016438,2]
[366112271,1750069842570,-490.0,0.00016438,2]
[366112273,1750069842580,-151.0,0.00016438,2]
[366112275,1750069842589,-490.0,0.00016438,2]
[366112277,1750069842598,-924.15,0.00016438,2]
[366112279,1750069842610,-582.46,0.00016438,2]
[366112281,1750069842619,-835.03,0.00016438,2]
[366112283,1750069842629,-500.21,0.00016438,2]
[366112285,1750069842638,-490.0,0.00016438,2]
[366112287,1750069842647,-1236.91,0.00016438,2]
[366112289,1750069842656,-490.0,0.00016438,2]
[366112291,1750069842666,-490.0,0.00016438,2]
[366112293,1750069842675,-490.0,0.00016438,2]
[366112295,1750069842685,-490.0,0.00016438,2]
[366112297,1750069842694,-716.44,0.00016438,2]
[366112299,1750069842703,-490.0,0.00016438,2]
[366112301,1750069842713,-1121.89,0.00016438,2]
[366112303,1750069842722,-490.0,0.00016438,2]
[366112305,1750069842733,-490.0,0.00016438,2]
[366112307,1750069842742,-490.0,0.00016438,2]
[366112309,1750069842752,-490.0,0.00016438,2]
[366112311,1750069842762,-659.75,0.00016438,2]
[366112313,1750069842771,-503.53,0.00016438,2]
[366112315,1750069842781,-1081.72,0.00016438,2]
[366112317,1750069842791,-1058.17,0.00016438,2]
[366112319,1750069842802,-302.93,0.00016438,2]
[366112321,1750069842811,-1255.6,0.00016438,2]
[366112323,1750069842820,-502.26,0.00016438,2]
[366112325,1750069842830,-543.0,0.00016438,2]
[366112327,1750069842840,-490.0,0.00016438,2]
[366112329,1750069842849,-490.0,0.00016438,2]
[366112331,1750069842858,-490.0,0.00016438,2]
[366112333,1750069842868,-490.0,0.00016438,2]
[366112335,1750069842877,-1136.75,0.00016438,2]
[366112337,1750069842887,-490.0,0.00016438,2]
[366112339,1750069842896,-490.0,0.00016438,2]
[366112341,1750069842905,-516.25,0.00016438,2]
[366112344,1750069842915,-490.0,0.00016438,2]
[366112345,1750069842924,-830.9,0.00016438,2]
[366112347,1750069842935,-1286.86,0.00016438,2]
[366112349,1750069842946,-490.0,0.00016438,2]
[366112352,1750069842956,-490.0,0.00016438,2]
[366112356,1750069842966,-490.0,0.00016438,2]
[366112359,1750069842976,-490.0,0.00016438,2]
[366112362,1750069842986,-1079.28,0.00016438,2]
[366112365,1750069842996,-803.69,0.00016438,2]
[366112367,1750069843006,-853.23,0.00016438,2]
[366112370,1750069843016,-538.62,0.00016438,2]
[366112372,1750069843025,-867.87,0.00016438,2]
[366112374,1750069843038,-490.0,0.00016438,2]
[366112376,1750069843047,-490.0,0.00016438,2]
[366112378,1750069843057,-490.0,0.00016438,2]
[366112379,1750069843067,-583.62,0.00016438,2]
[366112382,1750069843078,-764.14,0.00016438,2]
[366112384,1750069843087,-490.0,0.00016438,2]
[366112385,1750069843097,-736.39,0.00016438,2]
[366112388,1750069843107,-490.0,0.00016438,2]
[366112390,1750069843117,-490.0,0.00016438,2]
[366112392,1750069843127,-490.0,0.00016438,2]
[366112394,1750069843137,-490.0,0.00016438,2]
[366112396,1750069843147,-546.44,0.00016438,2]
[366112398,1750069843156,-925.05,0.00016438,2]
[366112400,1750069843166,-490.0,0.00016438,2]
[366112402,1750069843175,-490.0,0.00016438,2]
[366112404,1750069843186,-490.0,0.00016438,2]
[366112406,1750069843195,-1103.4,0.00016438,2]
[366112408,1750069843205,-584.6,0.00016438,2]
[366112410,1750069843214,-490.0,0.00016438,2]
[366112412,1750069843224,-630.25,0.00016438,2]
[366112414,1750069843234,-608.16,0.00016438,2]
[366112416,1750069843244,-490.0,0.00016438,2]
[366112418,1750069843253,-845.15,0.00016438,2]
[366112420,1750069843263,-490.0,0.00016438,2]
[366112422,1750069843274,-490.0,0.00016438,2]
[366112423,1750069843284,-490.0,0.00016438,2]
[366112425,1750069843294,-1697.9,0.00016438,2]
[366112428,1750069843304,-568.07,0.00016438,2]
[366112429,1750069843314,-490.0,0.00016438,2]
[366112431,1750069843323,-686.3,0.00016438,2]
[366112433,1750069843334,-509.36,0.00016438,2]
[366112436,1750069843344,-1052.59,0.00016438,2]
[366112437,1750069843354,-490.0,0.00016438,2]
[366112439,1750069843365,-552.19,0.00016438,2]
[366112441,1750069843376,-1407.27,0.00016438,2]
[366112443,1750069843386,-490.0,0.00016438,2]
[366112445,1750069843396,-510.98,0.00016438,2]
[366112447,1750069843406,-661.55,0.00016438,2]
[366112449,1750069843415,-490.0,0.00016438,2]
[366112451,1750069843425,-1821.88,0.00016438,2]
[366112453,1750069843435,-490.0,0.00016438,2]
[366112456,1750069843445,-490.0,0.00016438,2]
[366112458,1750069843454,-490.0,0.00016438,2]
[366112460,1750069843465,-998.43,0.00016438,2]
[366112462,1750069843474,-490.0,0.00016438,2]
[366112464,1750069843484,-490.0,0.00016438,2]
[366112466,1750069843494,-490.0,0.00016438,2]
[366112468,1750069843504,-490.0,0.00016438,2]
[366112469,1750069843513,-490.0,0.00016438,2]
[366112471,1750069843523,-493.58,0.00016438,2]
[366112474,1750069843533,-490.0,0.00016438,2]
[366112476,1750069843543,-824.64,0.00016438,2]
[366112478,1750069843553,-876.76,0.00016438,2]
[366112480,1750069843562,-490.0,0.00016438,2]
[366112482,1750069843572,-490.0,0.00016438,2]
[366112484,1750069843582,-1375.28,0.00016438,2]
[366112486,1750069843592,-151.0,0.00016438,2]
[366112488,1750069843601,-865.12,0.00016438,2]
[366112490,1750069843611,-490.0,0.00016438,2]
[366112492,1750069843621,-490.0,0.00016438,2]
[366112494,1750069843631,-151.0,0.00016438,2]
[366112496,1750069843641,-490.0,0.00016438,2]
[366112499,1750069843651,-490.0,0.00016438,2]
[366112501,1750069843662,-1275.9,0.00016438,2]
[366112503,1750069843671,-490.0,0.00016438,2]
[366112505,1750069843681,-1129.11,0.00016438,2]
[366112507,1750069843692,-868.39,0.00016438,2]
[366112510,1750069843703,-524.29,0.00016438,2]
[366112513,1750069843712,-490.0,0.00016438,2]
[366112516,1750069843723,-490.0,0.00016438,2]
[366112519,1750069843732,-490.0,0.00016438,2]
[366112522,1750069843742,-490.0,0.00016438,2]
[366112525,1750069843751,-490.0,0.00016438,2]
[366112527,1750069843760,-618.99,0.00016438,2]
[366112529,1750069843771,-490.0,0.00016438,2]
[366112531,1750069843781,-341.66364328,0.00016438,2]
[366112533,1750069843790,-862.38,0.00016438,2]
[366112535,1750069843800,-490.0,0.00016438,2]
[366112537,1750069843809,-976.15,0.00016438,2]
[366112539,1750069843819,-516.55,0.00016438,2]
[366112541,1750069843829,-490.0,0.00016438,2]
[366112543,1750069843839,-1246.45,0.00016438,2]
[366112544,1750069843850,-566.97,0.00016438,2]
[366112546,1750069843860,-490.0,0.00016438,2]
[366112548,1750069843870,-401.199273,0.00016438,2]
[366112550,1750069843880,-490.0,0.00016438,2]
[366112552,1750069843889,-490.0,0.00016438,2]
[366112554,1750069843900,-887.18,0.00016438,2]
[366112556,1750069843910,-598.35,0.00016438,2]
[366112558,1750069843919,-1796.75,0.00016438,2]
[366112560,1750069843929,-490.0,0.00016438,2]
[366112562,1750069843940,-401.199273,0.00016438,2]
[366112564,1750069843950,-490.0,0.00016438,2]
[366112567,1750069843961,-490.0,0.00016438,2]
[366112569,1750069843970,-328.333,0.00016438,2]
[366112571,1750069843980,-490.0,0.00016438,2]
[366112573,1750069843990,-1420.32,0.00016438,2]
[366112575,1750069844000,-986.91,0.00016438,2]
[366112576,1750069844009,-490.0,0.00016438,2]
[366112579,1750069844019,-1565.44,0.00016438,2]
[366112580,1750069844029,-359.130399,0.00016438,2]
[366112582,1750069844044,-490.0,0.00016438,2]
[366112585,1750069844054,-490.0,0.00016438,2]
[366112587,1750069844064,-490.0,0.00016438,2]
[366112589,1750069844074,-328.333,0.00016438,2]
[366112591,1750069844085,-490.0,0.00016438,2]
[366112593,1750069844095,-359.130399,0.00016438,2]
[366112595,1750069844105,-224.087512,0.00016438,2]
[366112597,1750069844115,-490.0,0.00016438,2]
[366112599,1750069844126,-490.0,0.00016438,2]
[366112601,1750069844136,-702.17,0.00016438,2]
[366112603,1750069844145,-978.41,0.00016438,2]
[366112605,1750069844154,-490.0,0.00016438,2]
[366112607,1750069844163,-490.0,0.00016438,2]
[366112609,1750069844173,-490.0,0.00016438,2]
[366112611,1750069844184,-304.236761,0.00016438,2]
[366112613,1750069844193,-151.0,0.00016438,2]
[366112615,1750069844203,-490.0,0.00016438,2]
[366112617,1750069844213,-490.0,0.00016438,2]
[366112619,1750069844223,-490.0,0.00016438,2]
[366112621,1750069844233,-2183.87,0.00016438,2]
[366112623,1750069844242,-582.27,0.00016438,2]
[366112625,1750069844253,-490.0,0.00016438,2]
[366112627,1750069844263,-304.236761,0.00016438,2]
[366112629,1750069844273,-490.0,0.00016438,2]
[366112631,1750069844283,-880.35,0.00016438,2]
[366112633,1750069844293,-490.0,0.00016438,2]
[366112635,1750069844302,-1110.71,0.00016438,2]
[366112636,1750069844312,-1206.92,0.00016438,2]
[366112638,1750069844322,-490.0,0.00016438,2]
[366112640,1750069844332,-1263.15,0.00016438,2]
[366112642,1750069844342,-490.0,0.00016438,2]
[366112644,1750069844352,-526.64,0.00016438,2]
[366112646,1750069844363,-1165.49,0.00016438,2]
[366112648,1750069844372,-720.34,0.00016438,2]
[366112650,1750069844383,-490.0,0.00016438,2]
[366112652,1750069844393,-871.4,0.00016438,2]
[366112653,1750069844404,-490.0,0.00016438,2]
[366112654,1750069844413,-1255.72,0.00016438,2]
[366112655,1750069844424,-151.853439,0.00016438,2]
[366112656,1750069844433,-490.0,0.00016438,2]
[366112657,1750069844445,-1034.96,0.00016438,2]
[366112658,1750069844455,-1104.8,0.00016438,2]
[366112659,1750069844465,-675.87,0.00016438,2]
[366112660,1750069844475,-490.0,0.00016438,2]
[366112661,1750069844485,-1139.09,0.00016438,2]
[366112663,1750069844494,-490.0,0.00016438,2]
[366112665,1750069844504,-490.0,0.00016438,2]
[366112667,1750069844514,-717.39,0.00016438,2]
[366112669,1750069844524,-490.0,0.00016438,2]
[366112671,1750069844534,-1326.1,0.00016438,2]
[366112673,1750069844543,-489.45315941,0.00016438,2]
[366112675,1750069844552,-490.0,0.00016438,2]
[366112677,1750069844562,-490.0,0.00016438,2]
[366112679,1750069844571,-490.0,0.00016438,2]
[366112681,1750069844580,-964.73,0.00016438,2]
[366112683,1750069844590,-749.03,0.00016438,2]
[366112685,1750069844599,-1300.87,0.00016438,2]
[366112687,1750069844609,-1602.72,0.00016438,2]
[366112689,1750069844619,-593.86,0.00016438,2]
[366112691,1750069844629,-490.0,0.00016438,2]
[366112693,1750069844638,-754.64,0.00016438,2]
[366112695,1750069844648,-490.0,0.00016438,2]
[366112697,1750069844658,-151.0,0.00016438,2]
[366112699,1750069844668,-1150.36,0.00016438,2]
[366112701,1750069844682,-490.0,0.00016438,2]
[366112703,1750069844694,-1545.11,0.00016438,2]
[366112705,1750069844703,-490.0,0.00016438,2]
[366112707,1750069844713,-1614.85,0.00016438,2]
[366112709,1750069844723,-934.88,0.00016438,2]
[366112710,1750069844732,-490.0,0.00016438,2]
[366112712,1750069844742,-994.38,0.00016438,2]
[366112714,1750069844752,-490.0,0.00016438,2]
[366112716,1750069844763,-805.81,0.00016438,2]
[366112718,1750069844773,-587.02,0.00016438,2]
[366112720,1750069844782,-490.0,0.00016438,2]
[366112722,1750069844792,-570.99,0.00016438,2]
[366112724,1750069844801,-1420.61,0.00016438,2]
[366112726,1750069844811,-495.59,0.00016438,2]
[366112728,1750069844821,-490.0,0.00016438,2]
[366112730,1750069844831,-490.0,0.00016438,2]
[366112732,1750069844841,-490.0,0.00016438,2]
[366112734,1750069844851,-1059.09,0.00016438,2]
[366112736,1750069844861,-526.93,0.00016438,2]
[366112738,1750069844871,-574.31,0.00016438,2]
[366112740,1750069844880,-490.0,0.00016438,2]
[366112742,1750069844890,-2374.71,0.00016438,2]
[366112744,1750069844900,-490.0,0.00016438,2]
[366112746,1750069844910,-490.0,0.00016438,2]
[366112748,1750069844920,-490.0,0.00016438,2]
[366112750,1750069844929,-1455.0,0.00016438,2]
[366112752,1750069844940,-771.368373,0.00016438,2]
[366112754,1750069844950,-1209.04,0.00016438,2]
[366112756,1750069844960,-490.0,0.00016438,2]
[366112759,1750069844970,-500.0,0.00016438,2]
[366112761,1750069844980,-500.0,0.00016438,2]
[366112763,1750069844990,-492.26547634,0.00016438,2]
[366112765,1750069845001,-490.0,0.00016438,2]
[366112767,1750069845011,-771.368373,0.00016438,2]
[366112769,1750069845020,-3145.35,0.00016438,2]
[366112771,1750069845031,-1956.03,0.00016438,2]
[366112772,1750069845045,-490.0,0.00016438,2]
[366112795,1750069845248,-1516.18,0.00016438,2]
[366112797,1750069845258,-490.0,0.00016438,2]
[366112799,1750069845268,-1681.88,0.00016438,2]
[366112801,1750069845278,-490.0,0.00016438,2]
[366112803,1750069845287,-621.61,0.00016438,2]
[366112805,1750069845297,-309.65892,0.00016438,2]
[366112807,1750069845307,-3073.4,0.00016438,2]
[366112809,1750069845316,-309.65892,0.00016438,2]
[366112811,1750069845326,-686.46,0.00016438,2]
[366112813,1750069845336,-490.0,0.00016438,2]
[366112815,1750069845346,-151.0,0.00016438,2]
[366112818,1750069845358,-151.0,0.00016438,2]
[366112820,1750069845368,-217.623931,0.00016438,2]
[366112822,1750069845377,-958.42,0.00016438,2]
[366112824,1750069845387,-490.0,0.00016438,2]
[366112826,1750069845397,-309.65892,0.00016438,2]
[366112828,1750069845407,-309.65892,0.00016438,2]
[366112830,1750069845416,-152.487399,0.00016438,2]
[366112832,1750069845426,-151.0,0.00016438,2]
[366112834,1750069845436,-151.0,0.00016438,2]
[366112836,1750069845446,-217.623931,0.00016438,2]
[366112838,1750069845456,-921.02,0.00016438,2]
[366112840,1750069845466,-1745.51,0.00016438,2]
[366112842,1750069845477,-1605.61,0.00016438,2]
[366112844,1750069845487,-1175.25,0.00016438,2]
[366112846,1750069845496,-490.0,0.00016438,2]
[366112848,1750069845507,-992.02,0.00016438,2]
[366112850,1750069845517,-1474.166357,0.00016438,2]
[366112852,1750069845527,-1474.166357,0.00016438,2]
[366112854,1750069845537,-490.0,0.00016438,2]
[366112856,1750069845547,-440.47452548,0.00016438,2]
[366112858,1750069845558,-490.0,0.00016438,2]
[366112860,1750069845568,-1474.166357,0.00016438,2]
[366112862,1750069845577,-490.0,0.00016438,2]
[366112864,1750069845587,-1474.166357,0.00016438,2]
[366112866,1750069845596,-490.0,0.00016438,2]
[366112868,1750069845605,-3975.05,0.00016438,2]
[366112870,1750069845615,-766.3,0.00016438,2]
[366112872,1750069845625,-490.0,0.00016438,2]
[366112874,1750069845634,-15416.93,0.00016438,2]
[366112876,1750069845644,-151.0,0.00016438,2]
[366112878,1750069845655,-490.0,0.00016438,2]
[366112880,1750069845665,-178.84054972,0.00016438,2]
[366112882,1750069845674,-490.0,0.00016438,2]
[366112884,1750069845684,-1256.27,0.00016438,2]
[366112886,1750069845694,-1233.92,0.00016438,2]
[366112888,1750069845703,-490.0,0.00016438,2]
[366112890,1750069845716,-151.0,0.00016438,2]
[366112892,1750069845729,-583.06,0.00016438,2]
[366112894,1750069845739,-490.0,0.00016438,2]
[366112896,1750069845749,-759.66,0.00016438,2]
[366112898,1750069845759,-490.0,0.00016438,2]
[366112901,1750069845769,-2041.53,0.00016438,2]
[366112903,1750069845778,-9248.73,0.00016438,2]
[366112904,1750069845788,-1766.95,0.00016438,2]
[366112906,1750069845799,-490.0,0.00016438,2]
[366112909,1750069845809,-490.0,0.00016438,2]
[366112911,1750069845819,-707.12,0.00016438,2]
[366112913,1750069845829,-490.0,0.00016438,2]
[366112915,1750069845839,-151.0,0.00016438,2]
[366112917,1750069845848,-151.0,0.00016438,2]
[366112919,1750069845858,-151.0,0.00016438,2]
[366112921,1750069845867,-150.0,0.00016438,2]
[366112923,1750069845877,-1014.34,0.00016438,2]
[366112925,1750069845886,-490.0,0.00016438,2]
[366112927,1750069845896,-150.0,0.00016438,2]
[366112929,1750069845906,-2238.01,0.00016438,2]
[366112931,1750069845916,-3421.35,0.00016438,2]
[366112933,1750069845925,-3439.96,0.00016438,2]
[366112935,1750069845935,-1252.54,0.00016438,2]
[366112937,1750069845946,-783.66,0.00016438,2]
[366112939,1750069845956,-490.0,0.00016438,2]
[366112941,1750069845967,-7513.75,0.00016438,2]
[366112943,1750069845978,-490.0,0.00016438,2]
[366112945,1750069845988,-1371.21,0.00016438,2]
[366112947,1750069845997,-651.28,0.00016438,2]
[366112949,1750069846009,-1321.02,0.00016438,2]
[366112951,1750069846019,-5480.2,0.00016438,2]
[366112953,1750069846029,-805.88,0.00016438,2]
[366112955,1750069846044,-850.59,0.00016438,2]
[366112958,1750069846055,-1848.53,0.00016438,2]
[366112960,1750069846067,-391.13,0.00016438,2]
[366112962,1750069846077,-1091.25,0.00016438,2]
[366112964,1750069846088,-490.0,0.00016438,2]
[366112966,1750069846098,-499.97,0.00016438,2]
[366112968,1750069846110,-490.0,0.00016438,2]
[366112970,1750069846122,-901.25,0.00016438,2]
[366112972,1750069846133,-490.0,0.00016438,2]
[366112974,1750069846143,-544.47951432,0.00016438,2]
[366112976,1750069846154,-769.82,0.00016438,2]
[366112978,1750069846164,-1026.02,0.00016438,2]
[366112980,1750069846174,-490.0,0.00016438,2]
[366112982,1750069846184,-1614.71,0.00016438,2]
[366112984,1750069846199,-490.0,0.00016438,2]
[366112986,1750069846209,-1269.84,0.00016438,2]
[366112988,1750069846220,-2371.9,0.00016438,2]
[366112990,1750069846230,-2664.62,0.00016438,2]
[366112992,1750069846241,-1519.49,0.00016438,2]
[366112994,1750069846251,-1081.62,0.00016438,2]
[366112996,1750069846261,-2830.78,0.00016438,2]
[366112999,1750069846271,-2761.79,0.00016438,2]
[366113001,1750069846281,-490.0,0.00016438,2]
[366113003,1750069846292,-1712.44,0.00016438,2]
[366113005,1750069846302,-490.0,0.00016438,2]
[366113007,1750069846312,-490.0,0.00016438,2]
[366113008,1750069846322,-490.0,0.00016438,2]
[366113010,1750069846334,-1400.16,0.00016438,2]
[366113011,1750069846345,-356.7813325,0.00016438,2]
[366113012,1750069846356,-490.0,0.00016438,2]
[366113013,1750069846366,-2238.78,0.00016438,2]
[366113014,1750069846377,-1976.44,0.00016438,2]
[366113015,1750069846387,-1940.59,0.00016438,2]
[366113016,1750069846398,-909.93,0.00016438,2]
[366113017,1750069846408,-490.0,0.00016438,2]
[366113018,1750069846418,-767.53,0.00016438,2]
[366113020,1750069846427,-1324.57,0.00016438,2]
[366113022,1750069846439,-1159.82,0.00016438,2]
[366113024,1750069846449,-490.0,0.00016438,2]
[366113026,1750069846459,-528.04,0.00016438,2]
[366113028,1750069846469,-490.0,0.00016438,2]
[366113030,1750069846479,-2414.02,0.00016438,2]
[366113032,1750069846489,-16322.88,0.00016438,2]
[366113034,1750069846499,-1184.83,0.00016438,2]
[366113036,1750069846509,-490.0,0.00016438,2]
[366113038,1750069846519,-864.95,0.00016438,2]
[366113040,1750069846528,-1955.11,0.00016438,2]
[366113042,1750069846538,-490.0,0.00016438,2]
[366113044,1750069846548,-490.0,0.00016438,2]
[366113046,1750069846558,-704.67,0.00016438,2]
[366113048,1750069846567,-3924.23,0.00016438,2]
[366113050,1750069846581,-7662.66,0.00016438,2]
[366113052,1750069846591,-884.4,0.00016438,2]
[366113054,1750069846601,-493.11991115,0.00016438,2]
[366113056,1750069846610,-1255.23,0.00016438,2]
[366113058,1750069846620,-151.0,0.00016438,2]
[366113060,1750069846630,-490.0,0.00016438,2]
[366113062,1750069846640,-151.0,0.00016438,2]
[366113064,1750069846650,-972.35,0.00016438,2]
[366113066,1750069846662,-1332.72,0.00016438,2]
[366113068,1750069846671,-194.139107,0.00016438,2]
[366113070,1750069846681,-2782.09,0.00016438,2]
[366113072,1750069846692,-704.04,0.00016438,2]
[366113074,1750069846702,-967.06,0.00016438,2]
[366113076,1750069846712,-453.10325061,0.00016438,2]
[366113078,1750069846722,-1001.29,0.00016438,2]
[366113080,1750069846732,-2398.3,0.00016438,2]
[366113082,1750069846742,-490.0,0.00016438,2]
[366113084,1750069846752,-490.0,0.00016438,2]
[366113086,1750069846763,-490.0,0.00016438,2]
[366113089,1750069846773,-710.49,0.00016438,2]
[366113091,1750069846783,-3638.59,0.00016438,2]
[366113093,1750069846792,-3721.8,0.00016438,2]
[366113095,1750069846802,-4730.52,0.00016438,2]
[366113096,1750069846812,-6023.6,0.00016438,2]
[366113099,1750069846822,-151.0,0.00016438,2]
[366113101,1750069846832,-498.07,0.00016438,2]
[366113103,1750069846842,-151.0,0.00016438,2]